bitfinex/quotes_BTCUSD_20220303
["timestamp","ask_amount","ask_price","bid_price","bid_amount"]
[1646265602102,0.3,43951.0,43946.0,0.00837968]
[1646265602498,0.20929899,43949.0,43945.0,0.00018718]
[1646265602697,0.3,43951.0,43945.0,0.00018718]
[1646265603099,0.3,43951.0,43944.0,0.1793497]
[1646265603299,0.3,43951.0,43946.0,0.00018718]
[1646265603776,0.3,43951.0,43948.0,0.00837968]
[1646265603975,0.15,43952.0,43946.0,0.00018718]
[1646265604377,0.15,43952.0,43944.0,0.1793497]
[1646265604577,0.004,43951.0,43946.0,0.00018718]
[1646265605076,0.15,43948.0,43946.0,0.20837103]
[1646265605276,0.15,43948.0,43946.0,0.00018718]
[1646265605477,0.15,43948.0,43944.0,0.1793497]
[1646265605676,0.15,43948.0,43945.0,0.00018718]
[1646265605878,0.02275,43953.0,43945.0,0.00018718]
[1646265606078,0.02275,43953.0,43946.0,0.351951]
[1646265606280,0.02275,43953.0,43945.0,0.00018718]
[1646265606281,0.15,43952.0,43945.0,0.00018718]
[1646265606678,0.15,43952.0,43946.0,0.002]
[1646265606878,0.15,43952.0,43949.0,0.00837968]
[1646265607078,0.15,43952.0,43947.0,0.18032464]
[1646265607704,0.32275,43954.0,43947.0,0.18032464]
[1646265607905,0.32275,43954.0,43944.0,0.1793497]
[1646265608106,0.32275,43954.0,43946.0,0.00018718]
[1646265608304,0.5187759,43954.0,43950.0,0.00837968]
[1646265608504,0.5415259,43954.0,43946.0,0.00018718]
[1646265608704,0.5415259,43954.0,43946.0,0.00218718]
[1646265608904,0.26620578,43951.0,43946.0,0.00218718]
[1646265609104,0.05514685,43948.0,43946.0,0.002]
[1646265609304,0.05514685,43948.0,43946.0,0.00218718]
[1646265609706,0.05514685,43948.0,43947.0,0.351942]
[1646265609904,0.05514685,43948.0,43947.0,0.36032168]
[1646265610305,0.05514685,43948.0,43947.0,0.00837968]
[1646265610505,0.05514685,43948.0,43947.0,0.36032168]
[1646265610706,0.05515398,43950.0,43948.0,0.11029369]
[1646265611457,0.05515398,43950.0,43948.0,0.11867337]
[1646265611653,0.05515398,43950.0,43948.0,0.11029369]
[1646265612054,0.05515398,43950.0,43949.0,0.351924]
[1646265612253,0.05515398,43950.0,43948.0,0.31727077]
[1646265612454,0.05515398,43950.0,43948.0,0.11029369]
[1646265612657,0.05515398,43950.0,43949.0,0.351924]
[1646265612853,0.05515398,43950.0,43949.0,0.36030268]
[1646265613455,0.05515398,43950.0,43949.0,0.56541044]
[1646265613956,0.05515398,43950.0,43949.0,0.82113408]
[1646265614757,0.05515398,43950.0,43949.0,0.82513408]
[1646265614996,0.05515398,43950.0,43949.0,0.87043408]
[1646265615899,0.05515398,43950.0,43949.0,0.86643408]
[1646265616903,0.15,43962.0,43950.0,0.45]
[1646265617102,0.15,43962.0,43951.0,0.419948]
[1646265617304,0.01137,43966.0,43956.0,0.00837968]
[1646265617503,0.01137,43966.0,43956.0,0.05367968]
[1646265617504,0.15,43962.0,43956.0,0.05367968]
[1646265617703,0.15,43965.0,43961.0,0.15688368]
[1646265618104,0.01137,43966.0,43956.0,0.0453]
[1646265618304,0.31137,43967.0,43956.0,0.0453]
[1646265618603,0.15,43962.0,43956.0,0.0453]
[1646265618849,0.15,43962.0,43959.0,0.00837968]
[1646265619051,0.15,43962.0,43957.0,0.17533288]
[1646265620053,0.15,43962.0,43956.0,0.0453]
[1646265620456,0.15,43962.0,43959.0,0.00837968]
[1646265620651,0.15,43962.0,43956.0,0.0453]
[1646265620851,0.15,43962.0,43956.0,0.0483]
[1646265621052,0.15,43962.0,43956.0,0.2028943]
[1646265621254,0.15,43962.0,43956.0,0.0483]
[1646265621758,0.18164366,43959.0,43956.0,0.003]
[1646265622157,0.503346,43957.0,43956.0,0.003]
[1646265622356,0.803346,43957.0,43956.0,0.003]
[1646265622608,0.21584867,43951.0,43949.0,0.0039163]
[1646265623009,0.80493899,43951.0,43949.0,0.0039163]
[1646265623610,0.50493899,43951.0,43950.0,0.00837968]
[1646265624206,0.80493899,43951.0,43950.0,0.00837968]
[1646265624707,0.80893899,43951.0,43950.0,0.00837968]
[1646265625309,1.16228499,43951.0,43950.0,0.00837968]
[1646265625512,0.80893899,43951.0,43950.0,0.00837968]
[1646265625909,0.80493899,43951.0,43950.0,0.00837968]
[1646265626751,0.80793899,43951.0,43950.0,0.00837968]
[1646265627752,1.27265499,43951.0,43950.0,0.00837968]
[1646265628055,1.26965499,43951.0,43950.0,0.00837968]
[1646265628452,1.38352699,43951.0,43950.0,0.01229061]
[1646265628852,1.53537313,43951.0,43950.0,0.01229061]
[1646265629255,1.52400313,43951.0,43950.0,0.01229061]
[1646265630112,1.52400313,43951.0,43950.0,0.00837968]
[1646265630311,0.45,43950.0,43947.0,0.00153186]
[1646265630516,0.15,43948.0,43947.0,0.00153186]
[1646265630715,0.45,43948.0,43947.0,0.00153186]
[1646265631111,0.55,43948.0,43947.0,0.00153186]
[1646265631311,0.61194276,43948.0,43947.0,0.00153186]
[1646265631513,0.74184276,43948.0,43947.0,0.00153186]
[1646265631713,0.79851276,43948.0,43947.0,0.00153186]
[1646265631914,0.92081276,43948.0,43947.0,0.00153186]
[1646265632312,1.4260049,43948.0,43947.0,0.00153186]
[1646265632514,0.056948,43946.0,43945.0,6.22e-06]
[1646265632715,0.944934,43946.0,43945.0,6.22e-06]
[1646265632916,0.944934,43946.0,43938.0,0.00102124]
[1646265632917,1.770154,43946.0,43938.0,0.00102124]
[1646265633116,0.353346,43937.0,43925.0,0.03]
[1646265633320,0.02275,43931.0,43925.0,0.03]
[1646265633517,0.353346,43926.0,43925.0,0.03]
[1646265634153,0.653346,43926.0,43925.0,0.03]
[1646265634654,0.353346,43926.0,43925.0,0.03]
[1646265635053,0.653346,43926.0,43925.0,0.03]
[1646265635654,0.783246,43926.0,43925.0,0.03]
[1646265636955,0.786246,43926.0,43925.0,0.03]
[1646265637596,0.656346,43926.0,43925.0,0.03]
[1646265637996,0.653346,43926.0,43925.0,0.03]
[1646265638200,0.798646,43926.0,43925.0,0.03]
[1646265638699,1.24357264,43926.0,43925.0,0.03]
[1646265638998,0.931546,43926.0,43925.0,0.03]
[1646265639600,1.3251412,43926.0,43925.0,0.025]
[1646265640000,1.3221412,43926.0,43925.0,0.025]
[1646265640200,1.3221412,43926.0,43919.0,0.0011]
[1646265640201,1.03295809,43925.0,43919.0,0.0011]
[1646265640402,1.03295809,43925.0,43910.0,0.0022]
[1646265640403,0.15,43920.0,43910.0,0.0022]
[1646265640600,0.53186167,43916.0,43910.0,0.0022]
[1646265640899,1.12716167,43916.0,43910.0,0.0022]
[1646265641101,1.12716167,43916.0,43910.0,0.00271062]
[1646265641102,0.77381567,43916.0,43910.0,0.00271062]
[1646265641355,1.12716167,43916.0,43910.0,0.0022]
[1646265641756,1.12716167,43916.0,43913.0,0.00350588]
[1646265641958,0.62079909,43916.0,43913.0,0.00350588]
[1646265642156,0.62079909,43916.0,43915.0,0.00491062]
[1646265642358,0.62079909,43916.0,43915.0,0.0044]
[1646265643357,0.62079909,43916.0,43915.0,0.00491062]
[1646265643559,0.62079909,43916.0,43915.0,0.0044]
[1646265644561,0.62028847,43916.0,43915.0,0.0044]
[1646265644999,0.62428847,43916.0,43915.0,0.0044]
[1646265646001,0.62028847,43916.0,43915.0,0.0044]
[1646265648402,0.26694247,43916.0,43915.0,0.0044]
[1646265648602,0.26694247,43916.0,43913.0,0.00349915]
[1646265648603,0.45,43915.0,43914.0,0.0022]
[1646265648856,0.45,43915.0,43911.0,0.0011]
[1646265648857,0.353346,43914.0,43911.0,0.0011]
[1646265649060,0.353346,43914.0,43913.0,0.00019915]
[1646265649254,0.828546,43914.0,43913.0,0.00019915]
[1646265649655,1.18996388,43914.0,43913.0,0.00019915]
[1646265649857,1.58355908,43914.0,43913.0,0.00019915]
[1646265650054,1.58355908,43914.0,43911.0,0.0011]
[1646265650354,0.483246,43912.0,43911.0,0.0011]
[1646265650555,0.828546,43912.0,43911.0,0.0011]
[1646265650758,0.928546,43912.0,43911.0,0.0011]
[1646265651955,0.928546,43912.0,43904.0,0.0011]
[1646265651956,0.6911,43910.0,43904.0,0.0011]
[1646265652157,0.6911,43905.0,43904.0,0.0011]
[1646265652357,1.014236,43905.0,43904.0,0.0011]
[1646265652604,1.0706683,43905.0,43904.0,0.0011]
[1646265652903,1.47509314,43905.0,43904.0,0.0011]
[1646265653102,1.17509314,43905.0,43904.0,0.0011]
[1646265653305,1.62568734,43905.0,43904.0,0.0011]
[1646265654008,0.803346,43904.0,43902.0,0.0027]
[1646265654203,0.398646,43903.0,43902.0,0.0027]
[1646265654408,0.6264119,43903.0,43902.0,0.0027]
[1646265654607,0.353346,43902.0,43901.0,0.0133]
[1646265654804,0.798646,43902.0,43901.0,0.0133]
[1646265655207,0.45,43901.0,43900.0,0.01130997]
[1646265655407,0.05700541,43899.0,43889.0,0.00382141]
[1646265655606,0.19329379,43893.0,43889.0,0.00382141]
[1646265656259,0.357007,43898.0,43889.0,0.00382141]
[1646265656260,0.0537189,43895.0,43889.0,0.00382141]
[1646265656462,0.45,43896.0,43888.0,0.17807333]
[1646265656659,0.1,43897.0,43884.0,0.28817171]
[1646265656859,0.2147341,43892.0,43885.0,0.352527]
[1646265657064,0.3,43891.0,43885.0,0.352527]
[1646265657262,0.2147341,43892.0,43885.0,0.352527]
[1646265657263,0.40991598,43892.0,43885.0,0.352527]
[1646265657459,0.40991598,43892.0,43885.0,0.19288436]
[1646265657659,0.40991598,43892.0,43884.0,0.0011]
[1646265657860,0.3,43891.0,43884.0,0.0011]
[1646265658261,0.2167341,43892.0,43884.0,0.0011]
[1646265658461,0.0453,43891.0,43884.0,0.0011]
[1646265659061,0.3453,43891.0,43884.0,0.0011]
[1646265659262,0.20776827,43890.0,43884.0,0.0011]
[1646265659462,0.0453,43889.0,43884.0,0.0011]
[1646265659666,0.3,43888.0,43884.0,0.0011]
[1646265659862,0.3,43888.0,43885.0,0.00019777]
[1646265659863,0.0453,43887.0,43885.0,0.00019777]
[1646265660320,0.1453,43887.0,43885.0,0.00019777]
[1646265660721,0.1453,43887.0,43884.0,0.0011]
[1646265660920,0.1453,43887.0,43881.0,0.0011]
[1646265661122,0.1453,43887.0,43884.0,0.00020734]
[1646265661326,0.36854547,43885.0,43884.0,0.00020734]
[1646265661520,0.29635547,43885.0,43884.0,0.00020734]
[1646265661923,0.29635547,43885.0,43881.0,0.0011]
[1646265662226,0.29635547,43885.0,43882.0,0.00020735]
[1646265662424,0.20159123,43883.0,43882.0,0.00020735]
[1646265662622,0.3049909,43885.0,43882.0,0.00020735]
[1646265663223,0.23864547,43885.0,43881.0,0.0011]
[1646265663424,0.23864547,43885.0,43881.0,0.00130735]
[1646265663627,0.23864547,43885.0,43872.0,0.27899667]
[1646265663871,0.18606307,43888.0,43875.0,0.15]
[1646265664063,0.18606307,43888.0,43876.0,0.35261]
[1646265664263,0.18606307,43888.0,43877.0,0.352601]
[1646265664462,0.18606307,43888.0,43875.0,0.15]
[1646265664662,0.28178539,43887.0,43879.0,0.25112542]
[1646265664866,0.28178539,43887.0,43878.0,0.17184588]
[1646265665063,0.31139,43892.0,43878.0,0.32184588]
[1646265665064,0.01139,43892.0,43878.0,0.32184588]
[1646265665265,0.01139,43896.0,43884.0,0.15]
[1646265665467,0.13715,43906.0,43879.0,0.375331]
[1646265665468,0.01139,43902.0,43888.0,0.17275]
[1646265665664,0.01139,43904.0,43889.0,0.397786]
[1646265665863,0.3,43905.0,43889.0,0.0453]
[1646265666163,0.21869084,43897.0,43892.0,0.18640297]
[1646265666363,0.21869084,43897.0,43893.0,0.39775]
[1646265666562,0.21869084,43897.0,43894.0,0.352444]
[1646265666863,0.21869084,43897.0,43895.0,0.352435]
[1646265667065,0.21869084,43897.0,43894.0,0.0453]
[1646265667365,0.056989,43909.0,43894.0,0.0453]
[1646265667366,0.13179,43911.0,43895.0,0.50243]
[1646265667654,0.01137,43910.0,43896.0,0.3453]
[1646265667854,0.01137,43910.0,43903.0,0.15616976]
[1646265668249,0.17091898,43907.0,43904.0,0.352347]
[1646265668448,0.17091898,43907.0,43904.0,0.352349]
[1646265668648,0.17091898,43907.0,43905.0,0.35234]
[1646265668849,0.17091898,43907.0,43904.0,0.352348]
[1646265669047,0.17091898,43907.0,43904.0,0.352349]
[1646265669249,0.01137,43912.0,43904.0,0.27876395]
[1646265669250,0.26253587,43912.0,43904.0,0.27876395]
[1646265669552,0.00021263,43908.0,43904.0,0.0453]
[1646265669751,0.00021263,43908.0,43906.0,0.352331]
[1646265669950,0.00021263,43908.0,43904.0,0.0453]
[1646265670155,0.00021263,43908.0,43904.0,0.21045173]
[1646265670351,0.3,43912.0,43904.0,0.21045173]
[1646265670551,0.056974,43919.0,43904.0,0.21045173]
[1646265670756,0.00021262,43908.0,43904.0,0.23320173]
[1646265670955,0.00021262,43908.0,43905.0,0.352337]
[1646265671153,0.00021262,43908.0,43906.0,0.0453]
[1646265671360,0.00021262,43908.0,43907.0,0.352322]
[1646265671560,0.18124585,43913.0,43907.0,0.397622]
[1646265671762,0.18124585,43913.0,43907.0,0.0453]
[1646265672060,0.18124585,43913.0,43908.0,0.35231]
[1646265672061,0.00021262,43909.0,43908.0,0.35231]
[1646265672264,0.00021262,43909.0,43908.0,0.352312]
[1646265672664,0.18124585,43913.0,43909.0,0.00042524]
[1646265673065,0.00020364,43911.0,43909.0,0.00042524]
[1646265674061,0.18124585,43913.0,43909.0,0.00042524]
[1646265674265,0.18124585,43913.0,43909.0,0.00242524]
[1646265674464,0.18124585,43913.0,43911.0,0.16669967]
[1646265674663,0.18124585,43913.0,43909.0,0.00242524]
[1646265675222,0.001,43916.0,43909.0,0.00242524]
[1646265675420,0.41137,43920.0,43909.0,0.00042524]
[1646265675620,0.41137,43920.0,43910.0,0.20510162]
[1646265675820,0.353346,43919.0,43910.0,0.20510162]
[1646265676021,0.353346,43918.0,43910.0,0.20510162]
[1646265676222,0.26731957,43922.0,43914.0,0.18203347]
[1646265676421,0.17366957,43924.0,43914.0,0.18203347]
[1646265676620,0.17366957,43924.0,43918.0,0.16056786]
[1646265676819,0.001,43925.0,43915.0,0.352247]
[1646265676820,9.536e-05,43916.0,43915.0,0.352247]
[1646265677021,9.536e-05,43916.0,43915.0,0.420297]
[1646265677219,9.536e-05,43916.0,43915.0,0.570297]
[1646265677419,9.536e-05,43916.0,43915.0,0.63023017]
[1646265677619,0.3,43934.0,43924.0,0.28434255]
[1646265677620,0.20527351,43932.0,43924.0,0.28434255]
[1646265677824,0.19970024,43924.0,43921.0,0.55763665]
[1646265678520,0.20527351,43932.0,43921.0,0.55763665]
[1646265678957,0.20527351,43932.0,43924.0,0.21147452]
[1646265679157,0.3,43937.0,43924.0,0.21147452]
[1646265679158,9.526e-05,43929.0,43924.0,0.21147452]
[1646265679357,9.526e-05,43929.0,43925.0,0.352147]
[1646265679559,0.19886395,43929.0,43925.0,0.352147]
[1646265679958,0.19876869,43929.0,43925.0,0.352147]
[1646265680362,0.19898137,43929.0,43925.0,0.352147]
[1646265681161,0.19876869,43929.0,43925.0,0.352147]
[1646265681560,0.19898137,43929.0,43925.0,0.352147]
[1646265682360,0.19876869,43929.0,43928.0,0.18822042]
[1646265682616,0.19898137,43929.0,43923.0,0.352163]
[1646265682920,0.19898137,43929.0,43923.0,0.420213]
[1646265683118,0.19898137,43929.0,43923.0,0.397463]
[1646265683514,0.19898137,43929.0,43923.0,0.420213]
[1646265683714,0.19876869,43929.0,43923.0,0.397463]
[1646265683915,0.00021268,43928.0,43927.0,0.20652585]
[1646265684115,0.00021268,43928.0,43927.0,0.352132]
[1646265684314,0.00425498,43928.0,43927.0,0.35307278]
[1646265684916,0.0040423,43928.0,43927.0,0.35307278]
[1646265685115,0.0040423,43928.0,43927.0,0.53117973]
[1646265685317,0.0040423,43928.0,43927.0,0.35307278]
[1646265686563,0.0040423,43928.0,43927.0,0.54935198]
[1646265687556,0.0040423,43928.0,43927.0,0.73121213]
[1646265688361,0.0040423,43928.0,43927.0,0.73521213]
[1646265688861,0.00384855,43928.0,43927.0,0.7351498]
[1646265689460,0.00384855,43928.0,43927.0,0.7311498]
[1646265689862,0.00384855,43928.0,43927.0,0.8269898]
[1646265690326,0.00384855,43928.0,43927.0,0.8299898]
[1646265690732,0.00384855,43928.0,43927.0,0.64812965]
[1646265691326,0.00384855,43928.0,43927.0,0.59758965]
[1646265691528,0.00384855,43928.0,43927.0,0.59458965]
[1646265692530,0.00384855,43928.0,43927.0,1.59654462]
[1646265693862,0.71733646,43940.0,43927.0,1.59654462]
[1646265693863,0.0999,43945.0,43928.0,0.824873]
[1646265694063,0.0999,43945.0,43942.0,0.15]
[1646265694262,0.469,43960.0,43943.0,0.72003]
[1646265694263,0.14255891,43952.0,43943.0,0.72003]
[1646265694462,0.16719423,43961.0,43945.0,0.351958]
[1646265694662,0.38482836,43969.0,43946.0,0.3453]
[1646265694663,0.473,43967.0,43946.0,0.3453]
[1646265694861,0.42914338,43963.0,43955.0,0.23786321]
[1646265695063,0.3079,43969.0,43955.0,0.23786321]
[1646265695064,0.01137,43966.0,43958.0,0.1611689]
[1646265695264,0.125,43969.0,43959.0,0.651825]
[1646265695265,0.01137,43968.0,43959.0,0.651825]
[1646265695561,0.01137,43968.0,43959.0,0.351825]
[1646265695760,0.01,43969.0,43959.0,0.351825]
[1646265696263,0.19617354,43966.0,43959.0,0.656825]
[1646265696461,0.19617354,43966.0,43961.0,0.351807]
[1646265697261,0.19638649,43966.0,43961.0,0.351807]
[1646265698117,0.19617354,43966.0,43961.0,0.351807]
[1646265698414,0.00021295,43966.0,43962.0,0.205626]
[1646265698625,0.00021295,43966.0,43963.0,0.35179]
[1646265698818,0.00021295,43966.0,43965.0,0.0101]
[1646265699116,0.00021295,43966.0,43965.0,0.407171]
[1646265699318,0.01,43969.0,43965.0,1.08177863]
[1646265699516,0.01,43969.0,43968.0,0.0101]
[1646265699715,0.01,43969.0,43968.0,0.361843]
[1646265699916,0.01,43969.0,43968.0,0.407143]
[1646265700519,0.01,43969.0,43968.0,0.707143]
[1646265700720,0.01,43969.0,43968.0,0.729893]
[1646265700721,0.005,43969.0,43968.0,0.729893]
[1646265701567,0.005,43969.0,43968.0,0.80045276]
[1646265701766,0.4691,43984.0,43973.0,0.056874]
[1646265701968,0.125,43988.0,43974.0,0.696981]
[1646265701969,0.00081793,43977.0,43974.0,0.696981]
[1646265702368,0.00081793,43977.0,43974.0,0.396981]
[1646265702568,0.00081793,43977.0,43975.0,0.18194694]
[1646265702866,0.21724921,43984.0,43976.0,0.351668]
[1646265703068,0.00020449,43978.0,43976.0,0.351668]
[1646265704068,0.21724921,43984.0,43976.0,0.351668]
[1646265704271,0.00020502,43979.0,43978.0,0.351646]
[1646265704673,0.00020502,43979.0,43976.0,0.006]
[1646265705108,0.27010592,43983.0,43976.0,0.006]
[1646265705109,0.26531094,43983.0,43976.0,0.006]
[1646265705510,0.26531094,43983.0,43974.0,0.0453]
[1646265705707,0.26531094,43983.0,43976.0,0.351664]
[1646265705909,0.0999,43988.0,43976.0,0.351663]
[1646265706109,0.01136,43990.0,43975.0,0.33064793]
[1646265706608,0.1164,43992.0,43975.0,0.38752293]
[1646265706609,0.01136,43991.0,43975.0,0.38752293]
[1646265706809,0.27918079,43986.0,43978.0,0.05687504]
[1646265707107,0.27918079,43986.0,43975.0,0.16723858]
[1646265707511,0.27860662,43986.0,43974.0,0.0453]
[1646265707808,0.27860662,43986.0,43979.0,0.20880254]
[1646265708208,0.27809662,43986.0,43979.0,0.20880254]
[1646265709482,0.20484077,43988.0,43979.0,0.20880254]
[1646265709483,0.18209077,43988.0,43979.0,0.20880254]
[1646265710284,0.13411,43991.0,43979.0,0.21388401]
[1646265710285,9.581e-05,43986.0,43979.0,0.21388401]
[1646265710486,9.581e-05,43986.0,43980.0,0.351629]
[1646265710686,9.581e-05,43986.0,43979.0,0.21388401]
[1646265710884,9.581e-05,43986.0,43980.0,0.351626]
[1646265711283,0.01136,43993.0,43979.0,0.21396548]
[1646265711487,0.19507556,43989.0,43979.0,0.20896548]
[1646265711684,9.581e-05,43985.0,43980.0,0.351622]
[1646265712083,9.581e-05,43985.0,43980.0,0.346622]
[1646265712284,9.581e-05,43985.0,43980.0,0.34670347]
[1646265712510,0.19507556,43989.0,43980.0,0.34670347]
[1646265712711,0.00021408,43985.0,43980.0,8.147e-05]
[1646265712910,0.00021408,43985.0,43980.0,0.35058764]
[1646265713315,0.21749755,43989.0,43980.0,0.35066911]
[1646265713511,0.27732286,43983.0,43980.0,0.00403211]
[1646265713713,0.27732286,43983.0,43981.0,0.346627]
[1646265714017,0.27732286,43983.0,43981.0,0.34663]
[1646265714212,0.27688923,43983.0,43981.0,0.00780945]
[1646265714412,0.27688923,43983.0,43982.0,0.346622]
[1646265714612,0.1,43992.0,43982.0,0.346621]
[1646265714913,0.1,43992.0,43981.0,0.00959983]
[1646265715115,9.502e-05,43987.0,43981.0,0.01167862]
[1646265715411,9.502e-05,43987.0,43981.0,0.01176009]
[1646265716013,0.3,43990.0,43982.0,0.00179038]
[1646265716259,0.21113051,43991.0,43982.0,0.00179038]
[1646265716458,0.00021388,43987.0,43983.0,0.346609]
[1646265716665,0.00021388,43987.0,43982.0,0.00179038]
[1646265717057,0.00021388,43987.0,43983.0,0.34661]
[1646265717260,0.1,43994.0,43982.0,0.00179038]
[1646265717459,0.1,43994.0,43989.0,0.15749864]
[1646265717659,0.00085541,43993.0,43989.0,0.15749864]
[1646265718360,0.20687321,43993.0,43989.0,0.15749864]
[1646265718661,0.1,43997.0,43984.0,0.001]
[1646265718859,0.00021387,43993.0,43984.0,0.001]
[1646265719060,0.00021387,43993.0,43989.0,0.00386917]
[1646265719462,0.00021387,43993.0,43989.0,0.00395064]
[1646265719663,0.2709253,43990.0,43989.0,0.00395064]
[1646265720525,0.2709253,43990.0,43989.0,0.00403211]
[1646265721128,0.00020504,43992.0,43989.0,0.00790128]
[1646265721525,0.00020504,43992.0,43989.0,0.00798275]
[1646265721934,0.00020504,43992.0,43984.0,0.00386917]
[1646265721935,0.826028,43991.0,43984.0,0.00386917]
[1646265722129,0.826028,43991.0,43989.0,0.00386917]
[1646265722130,0.3453,43990.0,43989.0,0.00386917]
[1646265722327,0.67439225,43990.0,43989.0,0.00386917]
[1646265722526,0.67439225,43990.0,43989.0,0.00395064]
[1646265722728,0.77429225,43990.0,43989.0,0.00395064]
[1646265722929,0.84292412,43990.0,43989.0,0.00395064]
[1646265723127,0.84292412,43990.0,43989.0,0.00574102]
[1646265723326,0.84292412,43990.0,43989.0,0.00781981]
[1646265723529,0.84292412,43990.0,43989.0,0.00790128]
[1646265723763,0.83117825,43990.0,43989.0,0.00790128]
[1646265723968,0.77429225,43990.0,43989.0,0.00790128]
[1646265724163,0.77429225,43990.0,43989.0,0.01177045]
[1646265724364,0.77429225,43990.0,43989.0,0.0145068]
[1646265724568,0.77429225,43990.0,43989.0,0.01458827]
[1646265724963,0.67439225,43990.0,43989.0,0.01458827]
[1646265725163,0.67439225,43990.0,43989.0,0.01637865]
[1646265725365,0.67439225,43990.0,43989.0,0.01845744]
[1646265725767,0.67439225,43990.0,43989.0,0.01853891]
[1646265726171,0.67439225,43990.0,43989.0,0.02032929]
[1646265726373,0.37439225,43990.0,43989.0,0.02240808]
[1646265726570,0.0453,43990.0,43989.0,0.02240808]
[1646265726771,0.00019842,43992.0,43989.0,0.02041076]
[1646265726971,0.01,43999.0,43989.0,0.02041076]
[1646265726972,0.01,43999.0,43989.0,0.06465076]
[1646265727175,0.01,43999.0,43990.0,0.20812117]
[1646265727371,0.01,43999.0,43990.0,0.34655]
[1646265727372,0.00018377,43992.0,43990.0,0.34655]
[1646265727616,0.00018377,43992.0,43991.0,0.51304225]
[1646265727812,0.00018377,43992.0,43991.0,0.50294225]
[1646265728213,0.0999,43998.0,43992.0,0.346525]
[1646265728412,0.0999,43998.0,43996.0,0.17431296]
[1646265728613,0.01,43999.0,43996.0,0.17431296]
[1646265729615,0.01,43999.0,43996.0,0.17610334]
[1646265729822,0.01,43999.0,43996.0,0.00395064]
[1646265730616,0.01,43999.0,43996.0,0.00574102]
[1646265730817,0.01,43999.0,43996.0,0.00790128]
[1646265731668,0.01,43999.0,43996.0,0.00969166]
[1646265731870,0.01,43999.0,43996.0,0.01185192]
[1646265732670,0.01,43999.0,43996.0,0.0136423]
[1646265732871,0.01,43999.0,43996.0,0.01580256]
[1646265733671,0.01,43999.0,43996.0,0.01759294]
[1646265733873,0.01,43999.0,43998.0,0.00094738]
[1646265735810,0.01,43999.0,43998.0,0.00273776]
[1646265736008,0.01,43999.0,43998.0,0.00489802]
[1646265736809,0.01,43999.0,43998.0,0.0066884]
[1646265737009,0.01,43999.0,43998.0,0.00884866]
[1646265737810,0.01,43999.0,43998.0,0.01063904]
[1646265738011,0.00991853,43999.0,43998.0,0.01271783]
[1646265738764,0.00991853,43999.0,43998.0,0.01536737]
[1646265738961,0.00991853,43999.0,43998.0,0.01744616]
[1646265739965,0.00991853,43999.0,43998.0,0.42648754]
[1646265740169,0.00991853,43999.0,43998.0,0.42856633]
[1646265741165,0.00812815,43999.0,43998.0,0.37178633]
[1646265741364,0.00812815,43999.0,43998.0,1.10309938]
[1646265741573,0.00604936,43999.0,43998.0,1.10309938]
[1646265742164,0.00604936,43999.0,43998.0,0.37178633]
[1646265742606,0.00604936,43999.0,43998.0,0.36778633]
[1646265744008,0.00154936,43999.0,43998.0,0.36778633]
[1646265744206,0.00154936,43999.0,43998.0,0.37862797]
[1646265744607,0.00154936,43999.0,43998.0,0.36852797]
[1646265746456,0.00154936,43999.0,43998.0,0.34352797]
[1646265747660,0.00154936,43999.0,43998.0,0.00207879]
[1646265747858,0.04684936,43999.0,43998.0,0.00207879]
[1646265748558,0.26570284,43999.0,43998.0,0.00207879]
[1646265748759,0.26570284,43999.0,43998.0,0.00557538]
[1646265748760,0.32332253,43999.0,43998.0,0.00557538]
[1646265749161,0.26977152,43999.0,43998.0,0.00557538]
[1646265749360,0.05091804,43999.0,43998.0,0.00557538]
[1646265752441,0.00561804,43999.0,43998.0,0.21236214]
[1646265752638,0.00561804,43999.0,43998.0,0.34702938]
[1646265752838,0.00561804,43999.0,43998.0,0.00557538]
[1646265753344,0.00561804,43999.0,43998.0,0.34702838]
[1646265753540,0.00561804,43999.0,43998.0,0.6348119]
[1646265753960,0.00561804,43999.0,43998.0,0.63301549]
[1646265753961,0.00625508,43999.0,43998.0,0.63301549]
[1646265754161,0.00625508,43999.0,43998.0,0.80669427]
[1646265754763,0.00625508,43999.0,43998.0,0.52901075]
[1646265756062,0.00625508,43999.0,43998.0,0.34523197]
[1646265757066,0.00625508,43999.0,43998.0,0.00377897]
[1646265757913,0.40480708,43999.0,43998.0,0.00377897]
[1646265758112,0.05155508,43999.0,43998.0,0.00377897]
[1646265758913,0.40480708,43999.0,43998.0,0.00377897]
[1646265759114,0.05147361,43999.0,43998.0,0.00377897]
[1646265760517,0.40472561,43999.0,43998.0,0.00377897]
[1646265761260,0.05147361,43999.0,43998.0,0.00377897]
[1646265761457,0.40472561,43999.0,43998.0,0.00377897]
[1646265761658,0.05147361,43999.0,43998.0,0.00377897]
[1646265762158,0.04968323,43999.0,43998.0,0.00377897]
[1646265762560,0.44808419,44000.0,43999.0,0.05031677]
[1646265762761,1.05343865,44000.0,43999.0,0.05031677]
[1646265763061,0.90317704,44000.0,43999.0,0.05031677]
[1646265763259,0.94847704,44000.0,43999.0,0.05031677]
[1646265763768,1.30058482,44000.0,43999.0,0.05031677]
[1646265763960,1.31249697,44000.0,43999.0,0.05031677]
[1646265764160,2.46890187,44000.0,43999.0,0.05031677]
[1646265764359,2.68194987,44000.0,43999.0,0.04031677]
[1646265764560,2.62506987,44000.0,43999.0,0.04031677]
[1646265764761,2.28722187,44000.0,43999.0,0.04031677]
[1646265765007,2.97832187,44000.0,43999.0,0.04031677]
[1646265765207,1.1411,43999.0,43996.0,0.01580256]
[1646265765408,0.5663,43997.0,43991.0,0.00216026]
[1646265765608,0.41013,43995.0,43991.0,0.00216026]
[1646265765809,0.7116,43994.0,43991.0,0.00216026]
[1646265766013,1.43015,43992.0,43975.0,0.01136]
[1646265766212,1.43015,43992.0,43966.0,0.01136]
[1646265766213,0.02209,43983.0,43966.0,0.01136]
[1646265766416,0.5663,43980.0,43966.0,0.01136]
[1646265766610,0.0453,43979.0,43966.0,0.01136]
[1646265766809,0.0453,43979.0,43968.0,0.16668597]
[1646265766810,0.1453,43979.0,43968.0,0.16668597]
[1646265767210,0.1453,43979.0,43969.0,0.20746957]
[1646265767412,0.21697614,43975.0,43969.0,0.20746957]
[1646265767712,0.0453,43974.0,43969.0,0.20746957]
[1646265768855,0.0403,43974.0,43969.0,0.20746957]
[1646265769455,0.0403,43974.0,43969.0,0.20946957]